{"text_format":"3","workbook":"xlsx","n_sheets":1,"sheets":["Sheet1"],"not_rendered":{"defined_names":1},"read":"whole","date_system":"1900"}

{"sheet":"Sheet1","index":0,"n_rows":51,"n_cols":56,"rows_kept":51,"merged":[[1,2,1,19],[1,24,1,41],[1,43,2,43],[2,2,2,19],[2,24,2,41],[3,2,3,19],[3,24,3,41],[3,43,4,43],[6,8,6,13],[6,30,6,35],[6,43,7,43],[8,4,8,16],[8,26,8,38],[9,4,9,16],[9,26,9,38],[10,5,10,7],[10,10,10,16],[10,27,10,29],[10,32,10,38],[11,4,11,8],[11,11,11,16],[11,26,11,30],[11,33,11,38],[12,6,12,16],[12,28,12,38],[13,6,13,16],[13,28,13,38],[14,8,14,16],[14,30,14,38],[15,6,15,17],[15,28,15,39],[17,7,17,17],[17,29,17,39],[20,4,20,6],[20,8,20,10],[20,11,20,16],[20,18,20,19],[20,26,20,28],[20,30,20,32],[20,33,20,38],[20,40,20,41],[24,11,24,18],[24,33,24,40],[28,2,28,7],[28,9,29,11],[28,12,28,19],[28,24,28,29],[28,31,29,33],[28,34,28,41],[29,2,29,7],[29,12,29,19],[29,24,29,29],[29,34,29,41],[30,2,30,7],[30,11,30,19],[30,24,30,29],[30,33,30,41],[32,12,32,16],[32,18,32,19],[32,34,32,38],[32,40,32,41],[37,12,37,19],[37,34,37,41],[47,11,47,19],[47,33,47,41],[48,11,48,19],[48,33,48,41],[50,11,50,19],[50,33,50,41]]}
[{"$nulls":52},"Enero",1,2019," LA ACADEMIA JAVIER MASCHERANO"]
[null,null,"Liga Amateur de Deportes de Lincoln",{"$nulls":21},"Liga Amateur de Deportes de Lincoln",{"$nulls":18},"Dos efectos",{"$nulls":8},"Febrero",2,2020," CLUB ATL. SOC. Y DEP. DE LINCOLN JUVENTUD UNIDA"]
[null,null,"Afiliada a la A.F.A.  -  Desp. Nº 10.170  - Estrada 1.230 - Lincoln - 6070 ",{"$nulls":21},"Afiliada a la A.F.A.  -  Desp. Nº 10.170  - Estrada 1.230 - Lincoln - 6070 ",{"$nulls":27},"Marzo",3,2021," CLUB ATLÉTICO ARGENTINO"]
[null,null,"Teléfono fijo 02355 421081 Mail: ligalincoln@gmail.com",{"$nulls":21},"Teléfono fijo 02355 421081 Mail: ligalincoln@gmail.com",{"$nulls":18},"Presentar:",{"$nulls":8},"Abril",4,2022," CLUB ATLÉTICO BAYAUCA"]
[{"$nulls":52},"Mayo",5,2023," CLUB ATLÉTICO EL LINQUEÑO"]
[null,null,"Sede: LINCOLN",{"$nulls":21},"Sede: LINCOLN",{"$nulls":18},"Fotografía x 2",{"$nulls":8},"Junio",6,2024," CLUB ATLÉTICO INDEPENDIENTE"]
[{"$nulls":7},"FICHA INDIVIDUAL Nº",{"$nulls":21},"FICHA INDIVIDUAL Nº",{"$nulls":13},"Fotocopia de Doc x 2",{"$nulls":8},"Julio",7,null," CLUB ATLÉTICO LAS TOSCAS"]
[{"$nulls":52},"Agosto",8,null," CLUB ATLÉTICO PASTEUR Y FERROCARRIL OESTE"]
[null,null,"Del jugador:",null,{"$f":"IF(AA9=\"\",\"FALTA INDICAR NOMBRE DEL JUGADOR\",UPPER(AA9))","v":"FALTA INDICAR NOMBRE DEL JUGADOR"},{"$nulls":19},"Del jugador:",{"$nulls":18},"Form. Aut padres x2",{"$nulls":8},"Septiembre",9,null," CLUB ATLÉTICO PINTENSE"]
[{"$nulls":4},"Apellido Primero, Nombre después",{"$nulls":21},"Apellido Primero, Nombre después",{"$nulls":25},"Octubre",10,null," CLUB ATLÉTICO ROBERTS"]
[null,null,"De Nacionalidad:",null,null,{"$f":"PROPER(AB11)","v":""},null,null,"Nacido en:",null,{"$f":"PROPER(AG11)","v":""},{"$nulls":13},"De Nacionalidad:",{"$nulls":5},"Nacido en:",{"$nulls":12},"TAMAÑO HOJA LEGAL",{"$nulls":8},"Noviembre",11,null," CLUB ATLÉTICO Y SOCIAL EL TRIUNFO"]
[null,null,"Provincia de:",null,{"$f":"PROPER(AA12)","v":""},{"$nulls":5},"el día",{"$f":"IF(AH12=\"\",\"\",AH12)","v":""},{"$nulls":12},"Provincia de:",{"$nulls":7},"el día",{"$nulls":19},"Diciembre",12,null," CLUB ATLÉTICO Y SOCIAL SAN MARTIN"]
[null,null,"Acta de Nacimiento Nº",{"$nulls":3},{"$f":"IF(AC13=\"\",\"\",AC13)","v":""},{"$nulls":17},"Acta de Nacimiento Nº",{"$nulls":28},13,null," CLUB DEPORTIVO SOCIAL DE LINCOLN SAN MIGUEL"]
[null,null,"Cédula de Identidad Nº",{"$nulls":3},{"$f":"IF(AND(AC14=\"\",AE15=\"\"),\"FALTA NUMERO DE DOCUMENTO\",IF(AC14=\"\",\"\",AC14))","v":"FALTA NUMERO DE DOCUMENTO"},{"$nulls":17},"Cédula de Identidad Nº",{"$nulls":28},14,null," CLUB DEPORTIVO Y SOCIAL ARENAZA"]
[null,null,"Documento Nacional de Identidad Nº",{"$nulls":5},{"$f":"IF(AND(AE15=\"\",AC14=\"\"),\"FALTA NUMERO DE DOCUMENTO\",IF(AE15=\"\",\"\",AE15))","v":"FALTA NUMERO DE DOCUMENTO"},{"$nulls":15},"Documento Nacional de Identidad Nº",{"$nulls":28},15,null," CLUB SOCIAL Y DEPORTIVO GENERAL PINTO"]
[null,null,"Que se inscribe por el:",{"$nulls":3},{"$f":"IF(AC16=\"\",\"FALTA INDICAR NOMBRE DEL CLUB\",AC16)","v":"FALTA INDICAR NOMBRE DEL CLUB"},{"$nulls":17},"Que se inscribe por el:",{"$nulls":28},16,null,"CLUB SOCIAL Y DEPORTIVO VILLA FRANCIA"]
[null,null,"de la Liga Amateur de Deportes de Lincoln.",{"$nulls":21},"de la Liga Amateur de Deportes de Lincoln.",{"$nulls":28},17]
[null,null,"estableciendo domicilio legal en:",{"$nulls":4},{"$f":"PROPER(AD18)","v":""},{"$nulls":10},"y que leído",{"$nulls":5},"estableciendo domicilio legal en:",{"$nulls":15},"y que leído",{"$nulls":12},18]
[null,null,"o interpretado las anotaciones al dorso.",{"$nulls":21},"o interpretado las anotaciones al dorso.",{"$nulls":28},19]
[{"$nulls":53},20]
[{"$nulls":4},"Lincoln, a los",null,null,{"$f":"IF(AD21=\"\",\"\",AD21)","v":""},"días del mes de",null,null,{"$f":"PROPER(AH21)","v":""},{"$nulls":5},"del año",{"$f":"IF(AO21=\"\",\"\",AO21)","v":""},{"$nulls":7},"Lincoln, a los",{"$nulls":3},"días del mes de",{"$nulls":8},"del año",{"$nulls":13},21]
[{"$nulls":53},22,null,"……………….."]
[{"$nulls":53},23]
[{"$nulls":53},24]
[{"$nulls":11},"Firma del Jugador",{"$nulls":21},"Firma del Jugador",{"$nulls":19},25]
[null,null,"Certificamos que los datos personales anotados fueron tomados del documento que se indica, de lo",{"$nulls":21},"Certificamos que los datos personales anotados fueron tomados del documento que se indica, de lo",{"$nulls":28},26]
[null,null,"cual nos hacemos responsables.",{"$nulls":21},"cual nos hacemos responsables.",{"$nulls":28},27]
[{"$nulls":53},28]
[{"$nulls":9},"Sello del Club",{"$nulls":21},"Sello del Club",{"$nulls":21},29]
[null,null,"Secretario",{"$nulls":9},"Presidente",{"$nulls":11},"Secretario",{"$nulls":9},"Presidente",{"$nulls":18},30]
[null,null,{"$f":"UPPER(Y31)","v":""},{"$nulls":8},{"$f":"UPPER(AH31)","v":""},{"$nulls":12},{"$f":"IF(AC16=\"\",\"\",AC16)","v":""},{"$nulls":8},{"$f":"IF(AC16=\"\",\"\",AC16)","v":""},{"$nulls":19},31]
[]
[{"$nulls":3},"Registrado en la fecha",{"$nulls":5},"Lincoln,",{"$f":"IF(AG33=\"\",\"\",AG33)","v":""},"de",{"$f":"PROPER(AI33)","v":""},{"$nulls":4},"de",{"$f":"IF(AO33=\"\",\"\",AO33)","v":""},"",{"$nulls":5},"Registrado en la fecha",{"$nulls":5},"Lincoln,",null,"de",{"$nulls":5},"de"]
[]
[{"$nulls":4},"Sello de la Liga",{"$nulls":21},"Sello de la Liga"]
[]
[]
[{"$nulls":12},"Secretario de la Liga",{"$nulls":21},"Secretario de la Liga"]
[]
[null,null,"INFORME MÉDICO:",{"$nulls":21},"INFORME MÉDICO:"]
[]
[]
[]
[{"$nulls":8},"de",{"$nulls":5},"de",{"$nulls":15},"de",{"$nulls":5},"de"]
[]
[]
[]
[]
[{"$nulls":11},"Firma del Médico",{"$nulls":21},"Firma del Médico"]
[]
[{"$nulls":11},"Aclaración",{"$nulls":21},"Aclaración"]